bitfinex/quotes_SOLUSD_20251124
["timestamp","ask_amount","ask_price","bid_price","bid_amount"]
[1764017034362,15.02471461,139.1,139.08,0.1]
[1764017034660,8.80994492,139.1,139.08,0.77]
[1764017035665,9.52704782,139.1,139.08,0.77]
[1764017035870,0.7171029,139.1,139.08,7.95998032]
[1764017036052,0.7171029,139.11,139.08,7.95998032]
[1764017036252,0.7171029,139.11,139.09,0.67]
[1764017037956,0.7171029,139.11,139.08,7.28998032]
[1764017038172,0.7171029,139.11,139.08,7.95998032]
[1764017039982,0.7171029,139.11,139.08,7.28998032]
[1764017040145,0.7171029,139.11,139.08,7.95998032]
[1764017040551,0.7171029,139.11,139.09,0.67]
[1764017041072,0.7171029,139.12,139.09,0.67]
[1764017041378,3.73187259,139.12,139.09,0.67]
[1764017041587,3.01476969,139.11,139.08,0.77]
[1764017041883,0.7171029,139.1,139.09,0.67]
[1764017042077,0.7171029,139.11,139.09,0.67]
[1764017042673,0.7171029,139.11,139.09,7.85949219]
[1764017044365,9.52704782,139.12,139.09,7.85949219]
[1764017044876,0.7171029,139.12,139.1,0.67]
[1764017045654,0.7171029,139.12,139.09,7.18949219]
[1764017045870,0.7171029,139.12,139.09,7.85949219]
[1764017047583,0.7171029,139.12,139.09,7.18949219]
[1764017047880,0.7171029,139.12,139.1,0.67]
[1764017048079,0.7171029,139.12,139.1,7.85880999]
[1764017048682,0.7171029,139.13,139.11,0.67]
[1764017050477,0.7171029,139.13,139.11,7.85815275]
[1764017052293,0.7171029,139.13,139.11,7.18815275]
[1764017052592,0.7171029,139.15,139.13,7.18752246]
[1764017052967,0.7171029,139.15,139.14,0.67]
[1764017053285,0.7171029,139.15,139.13,7.18752246]
[1764017053486,3.2,139.17,139.14,0.67]
[1764017053789,0.7171029,139.16,139.14,0.67]
[1764017054594,0.7171029,139.16,139.14,7.85668816]
[1764017054994,0.7171029,139.16,139.15,0.67]
[1764017055496,0.7171029,139.16,139.14,7.85668816]
[1764017055800,9.52704782,139.18,139.15,0.67]
[1764017055978,15.72471461,139.2,139.15,0.67]
[1764017056295,8.80994492,139.18,139.15,0.67]
[1764017056670,0.7171029,139.17,139.16,7.18597298]
[1764017056870,0.7171029,139.17,139.15,0.67]
[1764017057195,0.7171029,139.17,139.15,7.85643175]
[1764017059197,0.7171029,139.17,139.14,25.15452062]
[1764017059392,0.7171029,139.17,139.16,0.67]
[1764017062000,0.7171029,139.17,139.14,25.15452062]
[1764017062206,0.7171029,139.17,139.15,0.67]
[1764017063537,0.7171029,139.17,139.14,7.18700589]
[1764017063715,4.42187259,139.17,139.14,7.88700589]
[1764017063915,3.73187259,139.17,139.14,7.88700589]
[1764017064998,3.73187259,139.17,139.13,7.18752246]
[1764017065324,3.73187259,139.17,139.15,0.7]
[1764017065803,0.7171029,139.17,139.15,0.7]
[1764017066915,0.7171029,139.17,139.15,7.88633495]
[1764017069008,0.7171029,139.17,139.15,7.18633495]
[1764017069214,9.52704782,139.18,139.16,0.7]
[1764017069445,9.52704782,139.18,139.15,7.18633495]
[1764017069734,9.52704782,139.18,139.15,7.88633495]
[1764017070036,9.52704782,139.18,139.14,17.96699411]
[1764017070037,9.52704782,139.18,139.14,25.154]
[1764017070217,9.52704782,139.18,139.16,0.7]
[1764017070525,9.52704782,139.18,139.14,25.154]
[1764017070732,9.52704782,139.18,139.15,0.7]
[1764017072327,9.52704782,139.18,139.15,7.88617781]
[1764017073635,9.52704782,139.18,139.16,0.7]
[1764017075133,16.71205632,139.18,139.15,7.18617781]
[1764017075316,20.41682601,139.18,139.15,0.7]
[1764017075633,19.72682601,139.18,139.15,7.18636429]
[1764017075812,9.52704782,139.18,139.16,0.7]
[1764017078523,12.54181751,139.18,139.15,7.88636429]
[1764017078728,13.23181751,139.18,139.15,7.88636429]
[1764017079426,12.54181751,139.18,139.15,7.88636429]
[1764017079846,9.52704782,139.18,139.15,7.88636429]
[1764017081342,9.52704782,139.18,139.13,25.15586209]
[1764017081541,9.52704782,139.18,139.16,0.7]
[1764017084542,9.52704782,139.18,139.15,7.88620495]
[1764017084944,10.21704782,139.18,139.15,7.88620495]
[1764017085849,9.52704782,139.18,139.15,7.88620495]
[1764017087350,17.40205169,139.18,139.15,7.88620495]
[1764017087654,20.41682138,139.18,139.15,0.7]
[1764017088737,20.41682138,139.18,139.14,7.86679714]
[1764017088938,20.41682138,139.18,139.14,7.18679714]
[1764017089132,3.01476969,139.17,139.14,7.18679714]
[1764017089352,8.80994492,139.14,139.09,0.68]
[1764017089549,12.00994492,139.14,139.09,0.68]
[1764017089762,15.72471461,139.14,139.09,7.86958947]
[1764017090248,0.7171029,139.16,139.1,3.69476969]
[1764017090455,27.22629604,139.17,139.12,7.1880391]
[1764017090855,24.21152635,139.17,139.13,0.68]
[1764017091028,27.22629604,139.17,139.13,0.68]
[1764017091742,27.22629604,139.17,139.13,7.86706971]
[1764017091961,27.22629604,139.17,139.14,0.68]
[1764017092538,28.91916822,139.17,139.14,0.68]
[1764017092845,24.21152635,139.17,139.14,0.68]
[1764017093360,28.91916822,139.17,139.14,7.86695553]
[1764017093656,12.61030422,139.17,139.14,7.86695553]
[1764017093839,12.61030422,139.17,139.15,0.68]
[1764017094033,12.61030422,139.17,139.14,7.86695553]
[1764017094233,12.61030422,139.17,139.15,0.68]
[1764017094644,12.61030422,139.17,139.14,0.68]
[1764017097760,13.29030422,139.17,139.14,0.68]
[1764017099545,12.61030422,139.17,139.14,0.68]
[1764017100344,0.7171029,139.17,139.14,7.86674293]
[1764017100778,0.7171029,139.17,139.15,0.68]
[1764017101174,5.42474477,139.23,139.16,4.70764187]
[1764017101470,7.89958262,139.23,139.17,4.70764187]
[1764017101676,7.89958262,139.23,139.17,5.38764187]
[1764017101842,11.77870554,139.25,139.2,7.18390804]
[1764017102045,0.7171029,139.25,139.2,28.34367815]
[1764017102271,5.42474477,139.26,139.21,0.68]
[1764017102458,4.70764187,139.24,139.2,0.68]
[1764017102659,0.7171029,139.23,139.2,0.68]
[1764017103287,5.42474477,139.25,139.2,0.68]
[1764017103595,6.10474477,139.25,139.2,0.68]
[1764017103789,5.42474477,139.25,139.2,0.68]
[1764017103974,5.42474477,139.25,139.21,7.18339199]
[1764017104178,0.7171029,139.25,139.21,7.18339199]
[1764017104390,0.7171029,139.25,139.22,0.68]
[1764017105190,7.89851869,139.25,139.22,0.68]
[1764017105368,0.68,139.24,139.2,7.8636973]
[1764017105694,0.68,139.24,139.21,0.68]
[1764017105896,12.60616056,139.25,139.21,7.86338692]
[1764017106070,13.28616056,139.25,139.21,7.86338692]
[1764017106677,14.19758679,139.24,139.21,0.68]
[1764017106876,0.7171029,139.23,139.21,0.68]
[1764017107283,9.52704782,139.24,139.21,0.68]
[1764017107787,9.52704782,139.24,139.21,7.86333785]
[1764017107981,9.52704782,139.24,139.22,0.68]
[1764017108697,9.52704782,139.24,139.21,0.68]
[1764017108880,16.508864,139.28,139.22,4.70764187]
[1764017109082,0.7171029,139.27,139.21,8.58764187]
[1764017109396,6.10474477,139.27,139.21,3.88]
[1764017109694,4.70764187,139.25,139.21,7.86326479]
[1764017109901,4.70764187,139.23,139.18,3.2]
[1764017110075,4.70764187,139.23,139.2,0.68]
[1764017110275,0.7171029,139.22,139.2,0.68]
[1764017110574,5.42474477,139.22,139.2,0.68]
[1764017111104,4.70764187,139.21,139.18,7.86494036]
[1764017111298,8.80994492,139.22,139.19,0.68]
[1764017111604,0.7171029,139.21,139.19,0.68]
[1764017113712,7.90049939,139.21,139.19,0.68]
[1764017114021,16.308864,139.25,139.19,0.68]
[1764017114022,0.7171029,139.24,139.19,7.86440027]
[1764017114307,14.91468969,139.24,139.19,7.86440027]
[1764017114508,13.51758679,139.23,139.19,0.68]
[1764017114694,4.70764187,139.21,139.17,13.51758679]
[1764017114899,5.42474477,139.22,139.18,0.68]
[1764017115196,4.70764187,139.21,139.17,0.68]
[1764017115400,5.38764187,139.21,139.17,0.68]
[1764017116289,12.57125383,139.21,139.17,0.68]
[1764017116785,4.70764187,139.18,139.14,0.68]
[1764017117187,8.80994492,139.19,139.15,0.68]
[1764017118499,16.6744545,139.19,139.15,7.86635232]
[1764017118723,21.38209637,139.19,139.15,7.86635232]
[1764017118889,21.38209637,139.19,139.16,0.68]
[1764017119094,16.6744545,139.19,139.16,0.68]
[1764017119701,16.6744545,139.19,139.16,7.86595756]
[1764017119903,16.6744545,139.19,139.16,0.68]
[1764017120806,15.9944545,139.19,139.12,3.2]
[1764017121127,4.70764187,139.15,139.12,0.68]
[1764017121429,16.71758679,139.17,139.13,0.68]
[1764017121616,16.308864,139.18,139.13,12.57498528]
[1764017121912,24.21650587,139.18,139.13,12.57498528]
[1764017122094,16.308864,139.18,139.14,0.68]
[1764017122298,32.617728,139.18,139.14,0.68]
[1764017122515,16.308864,139.18,139.14,0.68]
[1764017123299,21.01650587,139.18,139.14,0.68]
[1764017123721,28.20170271,139.18,139.14,0.68]
[1764017124309,9.52704782,139.19,139.14,12.57440202]
[1764017124506,9.52704782,139.19,139.15,0.72]
[1764017124909,0.7171029,139.19,139.15,0.72]
[1764017125114,0.7171029,139.2,139.15,0.72]
[1764017125294,9.52704782,139.2,139.15,0.72]
[1764017125802,0.7171029,139.2,139.16,7.18597298]
[1764017126320,0.7171029,139.2,139.17,0.72]
[1764017128119,0.7171029,139.2,139.17,7.90531202]
[1764017129031,0.7171029,139.2,139.17,7.18531202]
[1764017129216,0.7171029,139.2,139.18,0.72]
[1764017129930,42.17680147,139.23,139.18,0.72]
[1764017129931,16.308864,139.23,139.18,5.42764187]
[1764017130111,0.7171029,139.24,139.2,7.18390804]
[1764017130622,0.7171029,139.24,139.21,0.72]
[1764017131210,0.7171029,139.24,139.17,3.2]
[1764017131211,8.80994492,139.21,139.16,9.52994492]
[1764017131412,0.7171029,139.2,139.17,0.72]
[1764017132342,3.9171029,139.23,139.18,7.18494036]
[1764017132634,13.51758679,139.22,139.17,7.90525353]
[1764017132821,11.8194726,139.23,139.18,0.72]
[1764017132822,0.7171029,139.21,139.18,0.72]
[1764017133024,11.1023697,139.23,139.18,0.72]
[1764017133025,12.72704782,139.23,139.18,0.72]
[1764017133250,0.7171029,139.24,139.19,4.70764187]
[1764017133443,9.52704782,139.24,139.19,4.70764187]
[1764017133758,9.52704782,139.24,139.2,0.72]
[1764017134133,9.52704782,139.24,139.2,7.90360857]
[1764017134649,9.52704782,139.24,139.21,0.72]
[1764017136646,21.41659212,139.24,139.21,0.72]
[1764017136854,22.13659212,139.24,139.19,0.72]
[1764017137145,0.7171029,139.24,139.19,30.57295342]
[1764017137354,14.23468969,139.25,139.19,25.86531155]
[1764017137524,4.70764187,139.24,139.2,0.72]
[1764017137870,13.51758679,139.22,139.18,7.90486686]
[1764017138025,5.42474477,139.21,139.18,0.72]
[1764017138226,6.14474477,139.21,139.18,0.72]
[1764017138443,13.32829594,139.21,139.17,7.9050954]
[1764017138636,13.32829594,139.21,139.17,7.1850954]
[1764017138956,13.32829594,139.21,139.18,0.72]
[1764017139429,13.32829594,139.21,139.17,7.9050954]
[1764017139624,12.60829594,139.21,139.16,7.18582955]
[1764017139836,14.23758679,139.2,139.16,7.18582955]
[1764017140033,8.80994492,139.2,139.17,0.72]
[1764017141352,8.80994492,139.2,139.17,7.90538019]
[1764017142622,5.42474477,139.21,139.18,0.72]
[1764017143535,5.42474477,139.21,139.18,7.90475951]
[1764017143736,0.7171029,139.21,139.18,7.90475951]
[1764017145249,17.0259669,139.23,139.19,5.42764187]
[1764017145449,17.0259669,139.23,139.19,0.72]
[1764017145749,24.92837296,139.23,139.19,0.72]
[1764017147042,9.52704782,139.24,139.2,4.70764187]
[1764017147236,9.52704782,139.24,139.21,5.42764187]
[1764017147237,0.7171029,139.24,139.21,5.42764187]
[1764017147438,3.8971029,139.25,139.21,5.42764187]
[1764017147642,3.8971029,139.25,139.22,0.72]
[1764017148147,4.6071029,139.25,139.22,0.72]
[1764017148452,3.8971029,139.25,139.22,0.72]
[1764017151165,3.8971029,139.25,139.2,4.70764187]
[1764017151166,9.51994492,139.24,139.17,7.18337505]
[1764017151454,0.7171029,139.23,139.19,5.37764187]
[1764017151656,0.7171029,139.23,139.2,5.37764187]
[1764017151858,3.18,139.25,139.22,4.70764187]
[1764017152359,3.18,139.25,139.23,0.67]
[1764017154066,0.7171029,139.26,139.23,0.67]
[1764017154352,9.52704782,139.26,139.23,7.85231754]
[1764017154567,9.52704782,139.26,139.23,0.67]
[1764017154568,10.20704782,139.26,139.23,0.67]
[1764017154736,9.52704782,139.26,139.23,0.67]
[1764017156049,16.70789389,139.26,139.23,0.67]
[1764017156242,20.39655988,139.26,139.23,0.67]
[1764017156662,9.52704782,139.26,139.23,0.67]
[1764017156857,9.52704782,139.26,139.23,7.85233944]
[1764017159445,10.20704782,139.26,139.23,0.67]
[1764017159645,17.38790567,139.26,139.23,0.67]
[1764017160472,10.20704782,139.26,139.23,7.67033415]
[1764017160652,9.52704782,139.26,139.23,7.18233415]
[1764017160850,9.52704782,139.26,139.22,7.1826947]
[1764017161054,8.80994492,139.22,139.11,35.94037664]
[1764017161255,3.8971029,139.23,139.13,10.36752246]
[1764017161577,23.63189697,139.26,139.22,3.00866599]
[1764017161578,8.80994492,139.26,139.22,3.00866599]
[1764017162359,9.48994492,139.26,139.22,10.91126091]
[1764017162554,9.48994492,139.26,139.22,7.90259492]
[1764017162760,16.6708279,139.26,139.22,7.1602165]
[1764017163254,16.6708279,139.26,139.23,0.72]
[1764017163487,9.48994492,139.26,139.22,10.16888249]
[1764017163855,9.48994492,139.26,139.23,0.72]
[1764017164976,9.48994492,139.26,139.23,7.90231547]
[1764017167137,0.7171029,139.27,139.24,3.72866599]
[1764017167260,0.2,139.28,139.25,3.00866599]
[1764017167568,0.2,139.28,139.25,0.72]
[1764017167769,0.2,139.28,139.26,0.72]
[1764017168159,0.2,139.28,139.27,3.00866599]
[1764017168356,0.2,139.28,139.26,3.72866599]
[1764017168556,0.2,139.28,139.27,3.00866599]
[1764017168886,0.2,139.28,139.27,20.03752999]
[1764017169078,0.2,139.28,139.27,27.21782725]
[1764017169400,0.2,139.31,139.27,45.16857041]
[1764017169569,0.2,139.31,139.3,3.00866599]
[1764017169886,0.2,139.31,139.3,3.72866599]
[1764017170261,0.2,139.31,139.3,0.72]
[1764017170570,3.88866599,139.31,139.27,7.18029726]
[1764017170919,3.00866599,139.28,139.22,7.18287602]
[1764017171089,3.72576889,139.27,139.22,7.90287602]
[1764017171391,0.7171029,139.27,139.23,0.72]
[1764017171592,1.3971029,139.27,139.23,0.72]
[1764017171775,1.3971029,139.27,139.21,7.90326109]
[1764017171776,12.49861091,139.26,139.21,7.90326109]
[1764017171958,0.7171029,139.25,139.21,7.90326109]
[1764017172275,9.48994492,139.26,139.22,0.72]
[1764017173281,9.48994492,139.26,139.22,7.90265978]
[1764017174186,0.7171029,139.25,139.22,7.90265978]
[1764017174402,4.40576889,139.25,139.21,7.18326073]
[1764017174567,3.00866599,139.24,139.2,7.18378381]
[1764017174765,3.68866599,139.24,139.2,7.90378381]
[1764017175781,3.00866599,139.23,139.18,10.36444325]
[1764017175978,3.00866599,139.23,139.12,8.80994492]
[1764017175979,3.00866599,139.21,139.17,7.90540895]
[1764017176187,11.81861091,139.22,139.18,0.72]
[1764017176372,9.48994492,139.22,139.18,3.72866599]
[1764017176573,0.14216157,139.25,139.18,3.72866599]
[1764017176777,6.86866599,139.24,139.19,3.72866599]
[1764017176978,8.80994492,139.23,139.19,0.72]
[1764017177290,8.80994492,139.23,139.18,3.00866599]
[1764017177291,8.80994492,139.23,139.21,7.18339199]
[1764017177678,12.49861091,139.23,139.2,7.1837607]
[1764017177993,9.48994492,139.23,139.19,7.90429073]
[1764017178493,8.80994492,139.24,139.2,3.72866599]
[1764017178670,10.20704782,139.24,139.2,0.72]
[1764017179178,10.20704782,139.24,139.21,7.18339199]
[1764017179906,12.53571381,139.24,139.19,10.91294374]
[1764017180093,13.21571381,139.24,139.2,0.72]
[1764017180268,0.68,139.23,139.19,10.91294374]
[1764017182007,7.86242299,139.23,139.19,7.90427775]
[1764017182170,0.68,139.23,139.19,7.90427775]
[1764017183069,0.68,139.23,139.19,10.91294374]
[1764017184408,3.00866599,139.21,139.16,7.90597298]
[1764017184608,3.00866599,139.21,139.16,10.91463897]
[1764017184809,3.69866599,139.21,139.17,0.72]
[1764017185014,0.69,139.21,139.17,0.72]
[1764017185377,3.69866599,139.21,139.17,0.72]
[1764017186014,0.69,139.21,139.18,7.18494036]
[1764017186585,0.7171029,139.22,139.19,0.72]
[1764017186791,3.00866599,139.23,139.19,3.72866599]
[1764017186792,0.7171029,139.23,139.19,3.72866599]
[1764017187205,0.7171029,139.23,139.2,0.72]
[1764017187911,0.7171029,139.23,139.21,7.18339199]
[1764017188217,12.67994492,139.24,139.21,7.18339199]
[1764017188218,0.7171029,139.24,139.21,7.18339199]
[1764017188395,0.7171029,139.24,139.21,7.90339199]
[1764017189020,1.4071029,139.24,139.21,7.90339199]
[1764017189603,0.7171029,139.24,139.21,7.90339199]
[1764017190492,0.14216157,139.28,139.23,3.00866599]
[1764017190493,9.49994492,139.28,139.23,3.00866599]
[1764017190695,0.7171029,139.27,139.24,3.00866599]
[1764017190997,0.7171029,139.27,139.23,3.72866599]
[1764017191317,1.4071029,139.27,139.23,3.72866599]
[1764017191791,1.4071029,139.27,139.24,0.72]
[1764017191991,12.50861091,139.26,139.21,28.32187198]
[1764017192191,0.7171029,139.25,139.21,31.33053797]
[1764017192510,4.41576889,139.25,139.21,7.18339199]
[1764017192889,0.69,139.24,139.21,7.90339199]
[1764017193207,0.69,139.24,139.21,10.91205798]
[1764017193506,0.7171029,139.25,139.21,10.91205798]
[1764017193800,11.59722989,139.25,139.21,7.18339199]
[1764017194209,0.69,139.24,139.21,7.18339199]
[1764017194380,0.69,139.24,139.2,10.19243191]
[1764017194579,0.69,139.24,139.2,10.91243191]
[1764017194793,0.69,139.24,139.2,10.19243191]
[1764017194994,0.69,139.24,139.2,10.91243191]
[1764017196109,0.69,139.24,139.2,10.19243191]
[1764017196324,0.69,139.24,139.21,0.72]
[1764017196608,0.69,139.24,139.2,10.19243191]
[1764017196819,0.69,139.24,139.2,10.91243191]
[1764017197119,11.81861091,139.23,139.16,16.308864]
[1764017197408,12.53571381,139.23,139.18,3.00866599]
[1764017197583,13.22571381,139.23,139.18,3.00866599]
[1764017197786,0.69,139.22,139.19,0.72]
[1764017198108,13.22571381,139.23,139.19,0.72]
[1764017198306,13.22571381,139.23,139.19,7.90420902]
[1764017198307,10.21704782,139.23,139.19,7.90420902]
[1764017198488,17.39955809,139.23,139.19,7.90420902]
[1764017199008,16.70955809,139.23,139.19,0.72]
[1764017199197,20.40822408,139.23,139.19,0.72]
[1764017199394,0.69,139.22,139.19,0.72]
[1764017199593,20.40822408,139.23,139.19,0.72]
[1764017200399,20.40822408,139.23,139.19,7.90433827]
[1764017201096,20.40822408,139.23,139.19,0.72]
[1764017201294,19.71822408,139.23,139.19,7.9043599]
[1764017201500,0.69,139.22,139.19,7.9043599]
[1764017201899,10.21704782,139.23,139.19,7.9043599]
[1764017202106,13.22571381,139.23,139.19,7.9043599]
[1764017202313,13.22571381,139.23,139.19,10.91302589]
[1764017202494,20.40809073,139.23,139.19,10.91302589]
[1764017202690,10.21704782,139.23,139.19,10.91302589]
[1764017202892,10.21704782,139.23,139.2,3.00866599]
[1764017203086,1.4071029,139.25,139.21,3.00866599]
[1764017203330,0.7171029,139.25,139.23,3.00866599]
[1764017203824,0.7171029,139.25,139.23,3.72866599]
[1764017204122,0.7171029,139.27,139.24,3.72866599]
[1764017204329,0.7171029,139.27,139.24,0.72]
[1764017204529,0.7171029,139.27,139.2,3.18]
[1764017204530,10.21704782,139.28,139.25,10.90999453]
[1764017204743,0.7171029,139.29,139.27,3.00866599]
[1764017205037,0.2,139.31,139.28,3.00866599]
[1764017205341,0.2,139.31,139.3,3.00866599]
[1764017205703,0.2,139.31,139.3,3.72866599]
[1764017206505,0.2,139.31,139.3,7.89875089]
[1764017207439,0.2,139.31,139.3,7.87409776]
[1764017208936,0.2,139.31,139.3,0.72]
[1764017209108,0.2,139.31,139.3,7.87409776]
[1764017209309,0.2,139.31,139.3,15.05284865]
[1764017210305,0.2,139.31,139.3,18.23284865]
[1764017211524,0.2,139.31,139.3,15.05284865]
[1764017211830,0.2,139.31,139.29,14.33317619]
[1764017212037,0.2,139.31,139.29,14.99317619]
[1764017212642,0.2,139.31,139.29,7.17907843]
[1764017212944,0.2,139.31,139.29,7.87907843]
[1764017213346,0.2,139.31,139.29,15.03317619]
[1764017214642,0.2,139.31,139.29,20.33940855]
[1764017215226,0.2,139.31,139.29,7.87907843]
[1764017215454,0.88,139.31,139.28,19.63999065]
[1764017215624,0.88,139.31,139.28,20.33999065]
[1764017216520,0.2,139.31,139.28,20.33999065]
[1764017217134,0.2,139.31,139.29,12.46033012]
[1764017218347,0.2,139.31,139.28,25.82911486]
[1764017218520,0.2,139.31,139.29,12.46033012]
[1764017218717,0.2,139.31,139.29,19.63930802]
[1764017218922,0.2,139.31,139.29,20.33930802]
[1764017219322,0.2,139.31,139.3,13.16033012]
[1764017220259,0.88,139.31,139.29,12.46033012]
[1764017220555,0.2,139.31,139.29,12.46033012]
[1764017220736,0.2,139.31,139.29,19.63958444]
[1764017220944,0.88,139.31,139.28,22.81988793]
[1764017221254,0.88,139.31,139.28,19.63988793]
[1764017221554,0.2,139.31,139.29,0.7]
[1764017221755,0.2,139.31,139.29,13.16033012]
[1764017222422,0.2,139.31,139.29,12.46033012]
[1764017222626,0.2,139.31,139.29,20.33910058]
[1764017223246,0.2,139.31,139.29,19.63910058]
[1764017224063,0.2,139.31,139.3,13.16033012]
[1764017224734,0.2,139.31,139.3,20.33908101]
[1764017225231,0.2,139.31,139.3,19.63908101]
[1764017225426,0.2,139.31,139.3,20.33908101]
[1764017226436,0.88,139.31,139.27,7.87997945]
[1764017226639,0.88,139.31,139.27,12.5770599]
[1764017227149,0.88,139.31,139.28,4.69708045]
[1764017228541,0.2,139.31,139.3,4.69708045]
[1764017228748,0.2,139.31,139.3,11.87583134]
[1764017228945,0.2,139.31,139.3,12.57583134]
[1764017230231,0.2,139.31,139.3,7.87875089]
[1764017230550,0.2,139.31,139.3,12.57583134]
[1764017235030,0.2,139.31,139.3,11.87583134]
[1764017235242,0.2,139.31,139.3,12.57583134]
[1764017238136,1e-08,139.31,139.3,17.27291179]
[1764017238469,1e-08,139.31,139.28,0.71797817]
[1764017238636,1e-08,139.31,139.3,5.39708045]
[1764017240559,1e-08,139.31,139.3,11.87583134]
[1764017240767,1e-08,139.31,139.29,31.36517191]
[1764017240954,0.68000001,139.31,139.26,0.7]
[1764017241155,5.37708046,139.31,139.25,18.65280426]
[1764017241354,5.37708046,139.31,139.26,3.18]
[1764017241654,5.37708045,139.3,139.24,11.87892474]
[1764017241858,5.37708045,139.3,139.25,3.18]
[1764017242172,0.68,139.29,139.25,3.18]
[1764017242355,0.68,139.29,139.25,3.88]
[1764017242668,0.68,139.29,139.26,7.18081286]
[1764017242854,0.71,139.29,139.26,29.82992548]
[1764017243045,0.71,139.29,139.26,11.87789331]
[1764017244268,0.71,139.29,139.26,29.82992548]
[1764017244461,0.71,139.29,139.26,30.54992548]
[1764017244659,0.71,139.29,139.25,3.18]
[1764017244660,1e-08,139.31,139.29,7.17926627]
[1764017244966,1e-08,139.31,139.29,11.87634672]
[1764017245168,1e-08,139.31,139.29,7.89926627]
[1764017245354,1e-08,139.31,139.29,12.59634672]
[1764017246556,1e-08,139.31,139.3,4.69708045]
[1764017246869,1e-08,139.31,139.3,7.17875089]
[1764017247566,1e-08,139.31,139.3,11.87583134]
[1764017247948,1e-08,139.31,139.3,7.17875089]
[1764017250870,1e-08,139.31,139.23,2.87780135]
[1764017250871,8.80994492,139.3,139.23,2.87780135]
[1764017251072,13.50702537,139.3,139.24,4.69708045]
[1764017251258,0.71,139.29,139.24,0.72]
[1764017251461,0.71,139.29,139.24,5.41708045]
[1764017252359,0.71,139.29,139.25,7.18132854]
[1764017253375,0.71,139.29,139.25,11.87840899]
[1764017253764,0.71,139.29,139.25,7.18132854]
[1764017254755,7.8893745,139.29,139.25,7.18132854]
[1764017255475,7.8893745,139.29,139.25,11.87840899]
[1764017255668,0.71,139.28,139.25,11.87840899]
[1764017256975,0.71,139.28,139.25,7.18132854]
[1764017257763,0.71,139.28,139.25,25.1346499]
[1764017258079,0.71,139.28,139.25,7.18132854]
[1764017258284,8.80994492,139.27,139.23,7.18236012]
[1764017258681,1e-08,139.31,139.26,4.69708045]
[1764017258882,1e-08,139.31,139.3,4.69708045]
[1764017259600,1e-08,139.31,139.3,8.59708045]
[1764017259888,1e-08,139.31,139.3,13.2941609]
[1764017260388,1e-08,139.31,139.3,20.47291179]
[1764017262573,0.10000001,139.35,139.3,41.47787989]
[1764017262789,7.98624393,139.35,139.33,12.45225176]
[1764017263284,0.81000001,139.35,139.33,12.45225176]
[1764017263499,0.81000001,139.35,139.34,12.45225176]
[1764017263883,0.81000001,139.35,139.33,12.45225176]
[1764017264964,0.81000001,139.35,139.34,12.45225176]
[1764017265171,0.81000001,139.35,139.33,12.45225176]
[1764017265905,7.98625821,139.35,139.31,7.89822988]
[1764017266117,0.81000001,139.35,139.33,12.45225176]
[1764017266986,0.81000001,139.35,139.34,12.45225176]
[1764017267490,0.10000001,139.35,139.34,12.45225176]
[1764017267690,0.10000001,139.35,139.34,13.13225176]
[1764017267888,0.10000001,139.35,139.34,12.45225176]
[1764017268079,0.10000001,139.35,139.34,13.13225176]
[1764017268481,0.10000001,139.35,139.34,12.45225176]
[1764017268863,0.10000001,139.35,139.33,3.18]
[1764017269064,0.10000001,139.35,139.33,19.62936525]
[1764017269468,0.10000001,139.35,139.33,12.45225176]
[1764017270017,0.10000001,139.35,139.34,13.13225176]
[1764017270386,0.10000001,139.35,139.34,12.45225176]
[1764017270682,0.10000001,139.35,139.34,11.67575176]
[1764017271291,0.10000001,139.35,139.34,18.85244187]
[1764017272295,0.10000001,139.35,139.34,19.53244187]
[1764017276199,0.10000001,139.35,139.33,19.62926202]
[1764017276598,0.10000001,139.35,139.33,14.32869815]
[1764017276789,0.72,139.34,139.32,7.17748649]
[1764017277176,1.53710291,139.35,139.32,7.17748649]
[1764017277477,8.80994492,139.32,139.26,0.71]
[1764017277806,15.96163281,139.32,139.26,11.04168789]
[1764017277987,0.72,139.31,139.27,7.18029726]
[1764017278172,0.72,139.31,139.27,14.33198515]
[1764017278602,0.72,139.31,139.27,32.99272831]
[1764017279404,0.72,139.31,139.28,7.15168789]
[1764017279700,0.72,139.31,139.27,32.99272831]